bitfinex/quotes_BTCUSD_20241124
["timestamp","ask_amount","ask_price","bid_price","bid_amount"]
[1732440894654,0.09695053,97700.0,97699.0,0.01611327]
[1732440894880,0.09695053,97700.0,97699.0,0.00224536]
[1732440895104,0.04915053,97700.0,97699.0,0.0007899]
[1732440895765,0.04915053,97700.0,97699.0,0.01465883]
[1732440896638,0.04915053,97700.0,97699.0,0.0007899]
[1732440898187,0.04915053,97700.0,97699.0,0.00224536]
[1732440898405,0.04915053,97700.0,97699.0,0.0007899]
[1732440898615,0.04915053,97700.0,97699.0,0.00224536]
[1732440902160,0.0286054,97700.0,97699.0,0.00224536]
[1732440902573,0.0286054,97700.0,97699.0,0.0007899]
[1732440903833,0.0286054,97700.0,97699.0,0.00224746]
[1732440905341,0.0478,97706.0,97699.0,0.01585573]
[1732440905590,0.0478,97706.0,97700.0,0.01360827]
[1732440905825,0.0478,97706.0,97701.0,0.01360827]
[1732440906073,0.0478,97706.0,97702.0,0.01360827]
[1732440906308,0.0478,97706.0,97703.0,0.01360827]
[1732440906540,0.0478,97706.0,97704.0,0.01360827]
[1732440906774,0.0478,97706.0,97705.0,0.01360827]
[1732440907234,0.00189422,97706.0,97705.0,0.03538109]
[1732440907702,0.00189422,97706.0,97705.0,0.03683865]
[1732440908238,0.00189422,97706.0,97705.0,0.01506583]
[1732440908497,0.00189422,97706.0,97705.0,0.01506507]
[1732440908719,0.00189422,97706.0,97705.0,0.01360751]
[1732440909837,0.0017178,97709.0,97705.0,0.01360751]
[1732440910077,0.0017178,97709.0,97706.0,0.01360751]
[1732440910307,0.0017178,97709.0,97707.0,0.01360751]
[1732440910950,0.0017178,97709.0,97707.0,0.01506785]
[1732440912666,0.0017178,97709.0,97707.0,0.16506785]
[1732440912878,0.0017178,97709.0,97707.0,0.47447948]
[1732440913101,0.0017178,97709.0,97707.0,0.16506785]
[1732440913317,0.0017178,97709.0,97707.0,0.16706785]
[1732440913530,0.0017178,97709.0,97707.0,0.21536785]
[1732440913743,0.0017178,97709.0,97707.0,0.06536785]
[1732440913952,0.0017178,97709.0,97707.0,0.06336785]
[1732440914166,0.0017178,97709.0,97707.0,0.06536785]
[1732440915219,0.0017176,97719.0,97718.0,0.002]
[1732440915462,0.0017176,97719.0,97718.0,0.47479751]
[1732440915692,0.0017176,97719.0,97718.0,0.16702417]
[1732440916581,0.0017176,97719.0,97718.0,0.32607037]
[1732440916801,0.0017176,97719.0,97718.0,0.21532417]
[1732440917287,0.0017176,97719.0,97718.0,0.20174563]
[1732440917513,0.0017176,97719.0,97718.0,0.21531132]
[1732440917762,0.0017176,97719.0,97718.0,0.06531132]
[1732440918743,0.0017176,97719.0,97718.0,0.00136119]
[1732440919185,0.0017176,97719.0,97716.0,0.30890833]
[1732440919408,0.0017176,97719.0,97718.0,0.00136119]
[1732440919634,0.0017176,97719.0,97717.0,0.00136153]
[1732440919859,0.0017176,97719.0,97718.0,0.00136136]
[1732440920329,0.0017176,97719.0,97708.0,0.0507]
[1732440920543,0.0017176,97719.0,97718.0,0.00135571]
[1732440920810,0.0017176,97719.0,97708.0,0.0507]
[1732440921022,0.0017176,97719.0,97718.0,0.00135571]
[1732440921236,0.0017176,97719.0,97708.0,0.2007]
[1732440921476,0.0017176,97719.0,97718.0,0.00135571]
[1732440921716,0.0017176,97719.0,97709.0,0.1748573]
[1732440921932,0.0017176,97719.0,97718.0,0.00135719]
[1732440922154,0.0017176,97719.0,97709.0,0.1735]
[1732440922616,0.0017176,97719.0,97709.0,0.0235]
[1732440923336,0.0017176,97719.0,97703.0,0.0219134]
[1732440923337,0.0493176,97719.0,97707.0,0.15]
[1732440925557,0.0493176,97719.0,97700.0,0.2242]
[1732440926710,0.0799,97718.0,97700.0,0.15]
[1732440926928,0.0471,97717.0,97700.0,0.15]
[1732440927155,0.127,97716.0,97715.0,0.15]
[1732440928104,0.127,97718.0,97711.0,0.40492428]
[1732440928318,0.0471,97717.0,97709.0,0.40492428]
[1732440928535,0.0471,97715.0,97699.0,0.0007899]
[1732440928758,0.0799,97714.0,97699.0,0.0007899]
[1732440928993,0.0799,97712.0,97699.0,0.0007899]
[1732440929214,0.0471,97711.0,97699.0,0.0007899]
[1732440929442,0.0799,97710.0,97699.0,0.0007899]
[1732440931634,0.0471,97709.0,97699.0,0.0007899]
[1732440931877,0.0799,97708.0,97699.0,0.0007899]
[1732440933484,0.002,97718.0,97703.0,0.15]
[1732440933774,0.0799,97710.0,97703.0,0.15]
[1732440934012,0.0799,97708.0,97704.0,0.0027403]
[1732440934251,0.0471,97707.0,97704.0,0.0027403]
[1732440934461,0.0799,97706.0,97704.0,0.0027403]
[1732440934695,0.127,97705.0,97704.0,0.0027403]
[1732440935391,0.0471,97705.0,97699.0,0.0007899]
[1732440935615,0.0799,97704.0,97699.0,0.0007899]
[1732440936058,0.0271,97703.0,97699.0,0.0007899]
[1732440939117,0.0271,97703.0,97700.0,0.00274536]
[1732440940574,0.0271,97703.0,97701.0,0.01337019]
[1732440940779,0.0271,97703.0,97700.0,0.00274536]
[1732440940780,0.0271,97703.0,97702.0,0.01337019]
[1732440940984,0.0271,97703.0,97702.0,0.01611528]
[1732440941625,0.0271,97703.0,97702.0,0.00274509]
[1732440942183,0.0271,97703.0,97702.0,0.00265359]
[1732440942656,0.0271,97703.0,97697.0,4.2e-07]
[1732440942988,0.0271,97703.0,97698.0,0.00265413]
[1732440943396,0.0271,97703.0,97697.0,4.2e-07]
[1732440943602,0.0271,97703.0,97699.0,0.00295603]
[1732440943801,0.0271,97703.0,97698.0,0.00295619]
[1732440944006,0.0071,97703.0,97698.0,0.15295619]
[1732440944231,0.0071,97703.0,97698.0,0.15]
[1732440944432,0.0071,97703.0,97699.0,0.00295697]
[1732440944791,0.0779,97702.0,97699.0,0.00295697]
[1732440945621,0.0779,97702.0,97697.0,4.2e-07]
[1732440945823,0.0779,97702.0,97700.0,0.00295705]
[1732440946024,0.0779,97702.0,97697.0,4.2e-07]
[1732440946232,0.0779,97702.0,97701.0,0.00295689]
[1732440946426,0.0779,97702.0,97697.0,4.2e-07]
[1732440946847,0.0779,97702.0,97699.0,0.0008588]
[1732440947217,0.1242,97701.0,97700.0,0.00295705]
[1732440951641,0.002,97701.0,97699.0,0.0008588]
[1732440951833,0.1242,97700.0,97699.0,0.0008588]
[1732440955138,0.1262,97700.0,97699.0,0.0008588]
[1732440964845,0.1262,97700.0,97699.0,0.00382003]
[1732440965053,0.1262,97700.0,97699.0,0.0008588]
[1732440965278,0.1262,97700.0,97699.0,0.00382003]
[1732440965498,0.1262,97700.0,97699.0,0.0008588]
[1732440965706,0.1262,97700.0,97699.0,0.00382003]
[1732440965933,0.1262,97700.0,97699.0,0.0008588]
[1732440966140,0.1262,97700.0,97699.0,0.00382003]
[1732440966345,0.1262,97700.0,97699.0,0.0008588]
[1732440966556,0.1262,97700.0,97699.0,0.00382003]
[1732440966762,0.1262,97700.0,97699.0,0.15382003]
[1732440967603,0.1262,97700.0,97699.0,0.55878522]
[1732440967820,0.1262,97700.0,97699.0,0.15382003]
[1732440968288,0.1242,97700.0,97699.0,0.15382003]
[1732440968499,0.1242,97700.0,97699.0,0.55878522]
[1732440968703,0.1242,97700.0,97699.0,0.00382003]
[1732440969134,0.1242,97700.0,97699.0,0.0008588]
[1732440969135,0.1262,97700.0,97699.0,0.0008588]
[1732440969394,0.1242,97700.0,97699.0,0.0008588]
[1732440969791,0.1262,97700.0,97699.0,0.0008588]
[1732440969981,0.1242,97700.0,97699.0,0.0008588]
[1732440970198,0.1262,97700.0,97699.0,0.0008588]
[1732440973884,0.002,97700.0,97699.0,0.55417126]
[1732440974100,0.002,97700.0,97699.0,0.15]
[1732440974327,0.1259,97700.0,97699.0,0.15297417]
[1732440974962,0.1259,97700.0,97699.0,0.00297417]
[1732440975159,0.3259,97700.0,97699.0,0.00297417]
[1732440975342,0.1259,97693.0,97692.0,0.00059791]
[1732440977580,0.1271796,97693.0,97692.0,0.00059791]
[1732440978161,0.3271796,97693.0,97692.0,0.00031361]
[1732440978472,0.5489,97693.0,97692.0,0.00031361]
[1732440984909,0.5489,97693.0,97692.0,0.00329034]
[1732440985136,0.5489,97693.0,97692.0,0.00031361]
[1732440986381,0.5489,97693.0,97690.0,0.0503]
[1732440986382,0.202,97691.0,97690.0,0.0503]
[1732440986583,0.5508798,97691.0,97690.0,0.0503]
[1732440986948,0.5496,97691.0,97690.0,0.0503]
[1732440990125,0.5496,97691.0,97690.0,0.05025638]
[1732440991612,0.5496,97691.0,97690.0,0.04997935]
[1732440994628,0.5496,97691.0,97690.0,0.05083825]
[1732440995670,0.5496,97691.0,97690.0,0.00083825]
[1732441004747,0.7496,97691.0,97690.0,0.00083825]
[1732441004962,0.425,97669.0,97668.0,0.0008592]
[1732441005173,0.552,97669.0,97668.0,0.0008592]
[1732441005394,0.552,97669.0,97635.0,0.048]
[1732441005395,0.2,97652.0,97635.0,0.048]
[1732441005613,0.02428018,97651.0,97635.0,0.048]
[1732441006084,0.002,97637.0,97635.0,0.04693289]
[1732441006299,0.2,97634.0,97629.0,0.0008593]
[1732441008209,0.3050804,97634.0,97629.0,0.0008593]
[1732441008417,0.5038,97634.0,97629.0,0.0008593]
[1732441008837,0.5058,97634.0,97629.0,0.0008593]
[1732441010593,0.3058,97634.0,97629.0,0.0008593]
[1732441010809,0.3038,97634.0,97629.0,0.0008593]
[1732441011023,0.3058,97634.0,97629.0,0.0008593]
[1732441012291,0.2828,97634.0,97629.0,0.0008593]
[1732441012924,0.4828,97634.0,97629.0,0.0008593]
[1732441013347,0.5058,97634.0,97629.0,0.0008593]
[1732441013568,0.552,97634.0,97629.0,0.0008593]
[1732441017748,0.529,97634.0,97629.0,0.0008593]
[1732441019878,0.529,97634.0,97633.0,0.01777501]
[1732441027549,0.202,97634.0,97633.0,0.01777501]
[1732441027791,0.20328043,97634.0,97633.0,0.01777501]
[1732441028035,0.20128043,97634.0,97633.0,0.01777501]
[1732441028307,0.00128043,97636.0,97633.0,0.01777501]
[1732441028563,0.2,97634.0,97633.0,0.01777501]
[1732441034308,0.001719,97635.0,97633.0,0.01777501]
[1732441034785,0.001719,97635.0,97634.0,0.00305893]
[1732441039038,0.001719,97635.0,97633.0,0.01777501]
[1732441041074,0.001719,97635.0,97634.0,0.0030506]
[1732441041543,0.001719,97635.0,97633.0,0.01777501]
[1732441042044,0.001719,97635.0,97634.0,0.00304783]
[1732441042306,0.001719,97635.0,97633.0,0.01777501]
[1732441043318,0.001719,97635.0,97634.0,0.00304778]
[1732441044590,0.001719,97635.0,97634.0,0.07784778]
[1732441044851,0.001719,97635.0,97634.0,0.27414778]
[1732441045164,0.001719,97635.0,97634.0,0.27500728]
[1732441045614,0.2,97675.0,97638.0,0.1211]
[1732441045851,0.2,97675.0,97664.0,0.15]
[1732441046067,0.2,97676.0,97666.0,0.15]
[1732441046277,0.2,97676.0,97669.0,0.15]
[1732441046491,0.2,97676.0,97659.0,0.0518]
[1732441046492,0.2,97676.0,97673.0,0.40484948]
[1732441046705,0.2,97676.0,97671.0,0.15]
[1732441046924,0.2,97676.0,97674.0,0.00302141]
[1732441047149,0.2,97676.0,97671.0,0.55484948]
[1732441047150,0.2,97676.0,97671.0,0.15]
[1732441047364,0.00127973,97683.0,97671.0,0.15]
[1732441047365,0.2,97675.0,97671.0,0.55484948]
[1732441047570,0.2,97675.0,97671.0,0.15]
[1732441047821,0.2,97675.0,97659.0,0.0518]
[1732441047822,0.2,97675.0,97670.0,0.15]
[1732441048034,0.00127973,97683.0,97669.0,0.40484948]
[1732441048035,0.2,97676.0,97669.0,0.15]
[1732441048258,0.2,97675.0,97669.0,0.15]
[1732441048478,0.2,97675.0,97668.0,0.55484948]
[1732441048689,0.2,97675.0,97666.0,0.173]
[1732441049333,0.2,97675.0,97666.0,0.023]
[1732441050003,0.2,97675.0,97664.0,0.023]
[1732441050851,0.2,97675.0,97662.0,0.023]
[1732441051692,0.2,97675.0,97660.0,0.023]
[1732441053168,0.00127973,97683.0,97656.0,0.15]
[1732441053169,0.20127974,97674.0,97656.0,0.15]
[1732441053388,0.0795,97673.0,97651.0,0.023]
[1732441053640,0.0795,97673.0,97649.0,0.023]
[1732441054269,0.0795,97673.0,97650.0,0.15]
[1732441054474,0.0795,97673.0,97651.0,0.023]
[1732441054891,0.00127983,97672.0,97653.0,0.023]
[1732441055361,0.00127983,97672.0,97655.0,0.023]
[1732441055811,0.00127983,97672.0,97657.0,0.023]
[1732441056240,0.00127983,97672.0,97649.0,0.023]
[1732441056704,0.00127983,97672.0,97651.0,0.023]
[1732441056912,0.0795,97673.0,97651.0,0.023]
[1732441056913,0.08077984,97673.0,97651.0,0.023]
[1732441057127,0.0795,97673.0,97653.0,0.023]
[1732441057543,0.001719,97672.0,97655.0,0.023]
[1732441057953,0.001719,97672.0,97649.0,0.023]
[1732441058370,0.001719,97672.0,97648.0,0.2018]
[1732441058371,0.001719,97672.0,97651.0,0.023]
[1732441058802,0.001719,97672.0,97653.0,0.023]
[1732441059483,0.001719,97672.0,97655.0,0.023]
[1732441059926,0.001719,97672.0,97657.0,0.023]
[1732441060376,0.001719,97672.0,97650.0,0.023]
[1732441060837,0.001719,97672.0,97652.0,0.023]
[1732441061267,0.001719,97672.0,97654.0,0.023]
[1732441061689,0.001719,97672.0,97656.0,0.023]
[1732441062133,0.001719,97672.0,97655.0,0.002798]
[1732441062134,0.001719,97672.0,97649.0,0.023]
[1732441062468,0.001719,97672.0,97651.0,0.023]
[1732441062867,0.001719,97672.0,97653.0,0.023]
[1732441063316,0.001719,97672.0,97655.0,0.02178874]
[1732441063517,0.001719,97672.0,97655.0,0.02041255]
[1732441063693,0.001719,97672.0,97656.0,0.00279729]
[1732441064097,0.001719,97672.0,97648.0,0.0518]
[1732441064502,0.001719,97672.0,97649.0,0.00279846]
[1732441065719,0.001719,97672.0,97650.0,0.023]
[1732441066149,0.001719,97672.0,97652.0,0.023]
[1732441066569,0.001719,97672.0,97654.0,0.023]
[1732441066988,0.001719,97672.0,97656.0,0.023]
[1732441067446,0.001719,97672.0,97650.0,0.15]
[1732441067649,0.001719,97672.0,97651.0,0.023]
[1732441067852,0.0757,97670.0,97651.0,0.02579748]
[1732441068026,0.0459,97669.0,97651.0,0.02579748]
[1732441068785,0.0757,97668.0,97651.0,0.02579748]
[1732441070940,0.00299884,97672.0,97651.0,0.02579748]
[1732441070941,0.0757,97665.0,97651.0,0.02579748]
[1732441071116,0.07697992,97665.0,97651.0,0.02579748]
[1732441071588,0.0757,97665.0,97645.0,0.023]
[1732441071789,0.0757,97665.0,97646.0,0.15]
[1732441071993,0.0757,97665.0,97647.0,0.023]
[1732441072397,0.0757,97665.0,97646.0,0.1527944]
[1732441072398,0.0757,97665.0,97649.0,0.023]
[1732441072833,0.0757,97665.0,97651.0,0.023]
[1732441073241,0.0757,97665.0,97653.0,0.023]
[1732441073649,0.0757,97665.0,97654.0,0.00279351]
[1732441076905,0.0757,97665.0,97654.0,0.15279351]
[1732441077533,0.0757,97665.0,97655.0,0.023]
[1732441077736,0.0757,97665.0,97657.0,0.15]
[1732441077955,0.0757,97665.0,97658.0,0.00279461]
[1732441078376,0.0757,97665.0,97658.0,0.40737269]
[1732441078567,0.0757,97665.0,97661.0,0.40457808]
[1732441078809,0.0757,97665.0,97664.0,0.15]
[1732441079236,0.0757,97665.0,97664.0,0.15279402]
[1732441080083,0.0757,97665.0,97664.0,0.00279402]
[1732441080491,0.0757,97665.0,97649.0,0.50344996]
[1732441080492,0.0757,97665.0,97650.0,0.023]
[1732441080698,0.0757,97665.0,97650.0,0.33158669]
[1732441080903,0.0757,97665.0,97652.0,0.023]
[1732441081286,0.0757,97665.0,97655.0,0.0008593]
[1732441081708,0.0757,97665.0,97657.0,0.023]
[1732441082081,0.0757,97665.0,97658.0,0.00279433]
[1732441082294,0.0757,97665.0,97659.0,0.023]
[1732441082789,0.0757,97665.0,97660.0,0.00279201]
[1732441085306,0.0757,97665.0,97658.0,0.023]
[1732441085516,0.0757,97665.0,97661.0,0.00269286]
[1732441085838,0.0757,97665.0,97662.0,0.00269186]
[1732441086284,0.0757,97665.0,97661.0,0.15]
[1732441086498,0.0757,97665.0,97663.0,0.00269185]
[1732441086711,0.0757,97665.0,97663.0,0.15]
[1732441086924,0.0757,97665.0,97664.0,0.00268872]
[1732441087557,0.0757,97665.0,97664.0,0.46143534]
[1732441088612,0.0757,97665.0,97664.0,0.00268872]
[1732441089032,0.0757,97665.0,97655.0,0.0008593]
[1732441089492,0.0757,97665.0,97657.0,0.023]
[1732441089927,0.0757,97665.0,97659.0,0.023]
[1732441090341,0.0757,97665.0,97660.0,0.00268926]
[1732441091691,0.0757,97665.0,97661.0,0.023]
[1732441092116,0.0757,97665.0,97663.0,0.023]
[1732441092562,0.0757,97665.0,97664.0,0.00268867]
[1732441093199,0.0774178,97665.0,97664.0,0.00268867]
[1732441093672,0.0774178,97665.0,97657.0,0.023]
[1732441094150,0.0774178,97665.0,97659.0,0.023]
[1732441094421,0.0017178,97665.0,97659.0,0.023]
[1732441094691,0.075,97671.0,97661.0,0.023]
[1732441094951,0.075,97671.0,97663.0,0.49621061]
[1732441095189,0.001719,97672.0,97664.0,0.173]
[1732441095422,0.001719,97672.0,97666.0,0.173]
[1732441095932,0.001719,97672.0,97668.0,0.023]
[1732441096410,0.001719,97672.0,97670.0,0.023]
[1732441096862,0.001719,97672.0,97671.0,0.02568892]
[1732441102922,0.02157277,97688.0,97672.0,0.023]
[1732441103179,0.02157277,97688.0,97677.0,0.15]
[1732441103431,0.02157277,97688.0,97678.0,0.03625948]
[1732441103646,0.02157277,97688.0,97678.0,0.03894348]
[1732441103879,0.02157277,97688.0,97678.0,0.025684]
[1732441104337,0.02157277,97688.0,97680.0,0.023]
[1732441104842,0.02157277,97688.0,97682.0,0.023]
[1732441105345,0.02157277,97688.0,97676.0,0.30922302]
[1732441105346,0.02157277,97688.0,97680.0,0.023]
[1732441105581,0.02157277,97688.0,97684.0,0.023]
[1732441105801,0.02157277,97688.0,97678.0,0.023]
[1732441106043,0.02157277,97688.0,97677.0,0.023]
[1732441106305,0.02157277,97688.0,97680.0,0.023]
[1732441106536,0.02157277,97688.0,97679.0,0.00289077]
[1732441106537,0.02157277,97688.0,97679.0,0.023]
[1732441106740,0.02157277,97688.0,97681.0,0.00289076]
[1732441106954,0.02157277,97688.0,97682.0,0.023]
[1732441107170,0.02157277,97688.0,97682.0,0.0258906]
[1732441107380,0.02157277,97688.0,97682.0,0.023]
[1732441107595,0.02157277,97688.0,97676.0,0.023]
[1732441108020,0.02157277,97688.0,97678.0,0.023]
[1732441108438,0.02157277,97688.0,97680.0,0.023]
[1732441109073,0.02157277,97688.0,97682.0,0.023]
[1732441109487,0.02157277,97688.0,97684.0,0.023]
[1732441109701,0.01157277,97688.0,97684.0,0.023]
[1732441109919,0.01157277,97688.0,97686.0,0.023]
[1732441110391,0.01157277,97688.0,97678.0,0.023]
[1732441110820,0.01157277,97688.0,97680.0,0.023]
[1732441111290,0.01157277,97688.0,97682.0,0.023]
[1732441111971,0.01157277,97688.0,97676.0,0.023]
[1732441112205,0.01157277,97688.0,97684.0,0.023]
[1732441112730,0.01157277,97688.0,97676.0,0.023]
[1732441112991,0.01157277,97688.0,97655.0,0.0008593]
[1732441112992,0.01157277,97688.0,97682.0,0.173]
[1732441113419,0.01157277,97688.0,97684.0,0.02179055]
[1732441113626,0.01157277,97688.0,97684.0,0.01955921]
[1732441113921,0.01157277,97688.0,97685.0,0.00288305]
[1732441116731,0.01329037,97688.0,97685.0,0.00288305]
[1732441117345,0.1977476,97691.0,97686.0,0.01310496]
[1732441117547,0.1977476,97691.0,97687.0,0.01310496]
[1732441117756,0.1977476,97691.0,97688.0,0.01310496]
[1732441117954,0.1977476,97691.0,97689.0,0.01310496]
[1732441118159,0.1977476,97691.0,97689.0,0.00267783]
[1732441118603,0.1977476,97697.0,97678.0,0.023]
[1732441118804,0.1977476,97691.0,97678.0,0.023]
[1732441119018,0.1977476,97691.0,97680.0,0.023]
[1732441119230,0.1977476,97691.0,97681.0,0.00288415]
[1732441119439,0.1977476,97691.0,97682.0,0.023]
[1732441119653,0.00127951,97690.0,97682.0,0.00288497]
[1732441119853,0.00127951,97690.0,97677.0,0.15]
[1732441120052,0.00127951,97690.0,97683.0,0.00267875]
[1732441120258,0.00127951,97690.0,97677.0,0.023]
[1732441120259,0.1284,97689.0,97677.0,0.023]
[1732441120467,0.1284,97689.0,97684.0,0.00267875]
[1732441120665,0.1284,97689.0,97675.0,0.15]
[1732441120666,0.1284,97689.0,97675.0,0.023]
[1732441120868,0.1284,97689.0,97685.0,0.0026786]
[1732441121072,0.1284,97689.0,97674.0,0.023]
[1732441121280,0.1284,97689.0,97686.0,0.00267845]
[1732441121512,0.1284,97689.0,97674.0,0.023]
[1732441121718,0.1284,97689.0,97687.0,0.00267759]
[1732441121925,0.1284,97689.0,97674.0,0.023]
[1732441122135,0.1284,97689.0,97688.0,0.0026783]
[1732441122337,0.1284,97689.0,97674.0,0.023]
[1732441122562,0.0808,97688.0,97674.0,0.023]
[1732441122973,0.0808,97688.0,97686.0,0.40546883]
[1732441123179,0.0808,97688.0,97687.0,0.15]
[1732441123598,0.0808,97688.0,97687.0,0.55546883]
[1732441124218,0.0808,97688.0,97673.0,0.173]
[1732441124642,0.0808,97688.0,97673.0,0.48195359]
[1732441126535,0.0808,97688.0,97676.0,0.023]
[1732441127337,0.0808,97688.0,97682.0,0.15]
[1732441128458,0.0808,97688.0,97679.0,0.15]
[1732441128644,0.0825172,97688.0,97679.0,0.15]
[1732441129347,0.0825172,97688.0,97678.0,0.30907258]
[1732441129804,0.0825172,97688.0,97679.0,0.15288482]
[1732441130421,0.0825172,97688.0,97681.0,0.15]
[1732441130830,0.0825172,97688.0,97682.0,0.0028845]
[1732441131917,0.0725172,97688.0,97682.0,0.0028845]
[1732441132588,0.00874757,97688.0,97683.0,0.01298841]
[1732441132818,0.00874757,97688.0,97684.0,0.01298841]
[1732441133058,0.00874757,97688.0,97685.0,0.01298841]
[1732441133253,0.00874757,97688.0,97686.0,0.01298841]
[1732441133468,0.00874757,97688.0,97676.0,0.0238586]
[1732441133679,0.00874757,97688.0,97676.0,0.0008586]
[1732441133882,0.00874757,97688.0,97687.0,0.00267844]
[1732441134093,0.00874757,97688.0,97676.0,0.0008586]
[1732441134513,0.00874757,97688.0,97687.0,0.00267844]
[1732441134719,0.00874757,97688.0,97676.0,0.0008586]
[1732441135128,0.00874757,97688.0,97687.0,0.0026806]
[1732441135338,0.00874757,97688.0,97676.0,0.0008586]
[1732441135548,0.00874757,97688.0,97687.0,0.0026806]
[1732441135754,0.00874757,97688.0,97676.0,0.0008586]
[1732441136168,0.00874757,97688.0,97678.0,0.023]
[1732441136637,0.00874757,97688.0,97679.0,0.00288837]
[1732441139165,0.05317477,97691.0,97687.0,0.40605965]
[1732441139368,0.05317477,97691.0,97688.0,0.15]
[1732441139574,0.05317477,97691.0,97688.0,0.5587414]
[1732441140636,0.00108916,97690.0,97688.0,0.5587414]
[1732441142063,0.1256,97689.0,97688.0,0.5587414]
[1732441142267,0.17986393,97689.0,97688.0,0.15268175]
[1732441142545,0.17986393,97689.0,97688.0,0.00268175]
[1732441142546,0.37986393,97689.0,97688.0,0.00268175]
[1732441142764,0.38077477,97689.0,97682.0,0.0008586]
[1732441142958,0.002,97683.0,97682.0,0.0008586]
[1732441143169,0.12868916,97683.0,97682.0,0.0008586]
[1732441143372,0.32868916,97683.0,97682.0,0.0008586]
[1732441143542,0.3276,97683.0,97682.0,0.0008586]
[1732441144833,0.3276,97683.0,97682.0,0.00353975]
[1732441145041,0.3276,97683.0,97682.0,0.0008586]
[1732441145281,0.3276,97683.0,97682.0,0.00353975]
[1732441145514,0.3256,97683.0,97682.0,0.0008586]
[1732441145727,0.3256,97683.0,97682.0,0.00353975]
[1732441145934,0.3256,97683.0,97682.0,0.0008586]
[1732441146136,0.3276,97683.0,97682.0,0.00353989]
[1732441146263,0.3276,97683.0,97682.0,0.00354003]
[1732441149286,0.3276,97683.0,97682.0,0.0008586]
[1732441149954,0.3256,97683.0,97682.0,0.0008586]
[1732441150566,0.3256,97683.0,97672.0,0.14872039]
[1732441150743,0.3256,97683.0,97670.0,0.30907258]
[1732441150744,0.00108916,97682.0,97670.0,0.30907258]
[1732441151346,0.05317477,97679.0,97669.0,0.30907258]
[1732441151605,0.05317477,97679.0,97656.0,0.0463]
[1732441151606,0.00108916,97678.0,97668.0,0.30907258]
[1732441152649,0.00108916,97678.0,97667.0,0.30907258]
[1732441152853,0.00108916,97678.0,97668.0,0.15]
[1732441153053,0.05426393,97678.0,97668.0,0.15]
[1732441153465,0.0465,97677.0,97668.0,0.15]
[1732441153667,0.08018916,97676.0,97668.0,0.15]
[1732441155388,0.08018916,97676.0,97667.0,0.30920133]
[1732441155594,0.08018916,97676.0,97668.0,0.15]
[1732441159246,0.08018916,97676.0,97666.0,0.15]
[1732441159473,0.05317477,97675.0,97666.0,0.15]
[1732441159713,0.05317477,97675.0,97665.0,0.31006759]
[1732441159714,0.00108916,97674.0,97665.0,0.1508588]
[1732441159914,0.00108916,97674.0,97667.0,0.00268792]
[1732441160324,0.00108916,97674.0,97666.0,0.15]
[1732441160739,0.00108916,97674.0,97668.0,0.00269146]
[1732441160962,0.00108916,97674.0,97667.0,0.0026916]
[1732441161382,0.00108916,97674.0,97668.0,0.0026916]
[1732441161581,0.00108916,97674.0,97666.0,0.45921926]
[1732441161830,0.00108916,97674.0,97669.0,0.00269152]
[1732441162035,0.00108916,97674.0,97666.0,0.45921926]
[1732441162240,0.00108916,97674.0,97670.0,0.00269066]
[1732441162447,0.00108916,97674.0,97666.0,0.45921926]
[1732441162652,0.00108916,97674.0,97671.0,0.00269065]
[1732441162851,0.00108916,97674.0,97666.0,0.45921926]
[1732441163161,0.00108916,97674.0,97672.0,0.00269051]
[1732441163377,0.00108916,97674.0,97667.0,0.00269138]
[1732441163821,0.00108916,97674.0,97666.0,0.45921926]
[1732441164021,0.00108916,97674.0,97668.0,0.00269138]
[1732441164235,0.00108916,97674.0,97667.0,0.00269167]
[1732441164469,0.00108916,97674.0,97669.0,0.00269137]
[1732441164673,0.00108916,97674.0,97666.0,0.45921926]
[1732441164674,0.00108916,97674.0,97668.0,0.00269152]
[1732441164876,0.00108916,97674.0,97670.0,0.00269123]
[1732441165080,0.00108916,97674.0,97669.0,0.00269137]
[1732441165286,0.00108916,97674.0,97671.0,0.00269122]
[1732441165458,0.00108916,97674.0,97670.0,0.00269137]
[1732441165664,0.00108916,97674.0,97672.0,0.00269108]
[1732441165866,0.00108916,97674.0,97671.0,0.00269122]
[1732441166091,0.00108916,97674.0,97673.0,0.00269093]
[1732441166306,0.00108916,97674.0,97672.0,0.00269036]
[1732441166517,0.00108916,97674.0,97673.0,0.00269022]
[1732441167025,0.00108916,97674.0,97673.0,0.0026905]
[1732441167255,0.00108916,97674.0,97668.0,0.15]
[1732441167484,0.00108916,97674.0,97673.0,0.00269065]
[1732441167752,0.00108916,97674.0,97668.0,0.45921926]
[1732441168017,0.00108916,97674.0,97673.0,0.00269065]
[1732441168241,0.05426393,97674.0,97668.0,0.15]
[1732441168472,0.05426393,97674.0,97673.0,0.00269093]
[1732441168734,0.05426393,97674.0,97668.0,0.45921926]
[1732441168965,0.05426393,97674.0,97673.0,0.00269093]
[1732441169219,0.05426393,97674.0,97668.0,0.45921926]
[1732441169494,0.05426393,97674.0,97673.0,0.00269022]
[1732441169751,0.05426393,97674.0,97668.0,0.45921926]
[1732441169999,0.05426393,97674.0,97673.0,0.00269022]
[1732441170252,0.05426393,97674.0,97668.0,0.45921926]
[1732441170514,0.05426393,97674.0,97673.0,0.00269036]
[1732441170822,0.05426393,97674.0,97668.0,0.45921926]
[1732441170983,0.05426393,97674.0,97670.0,0.15]
[1732441171400,0.05426393,97674.0,97671.0,0.00269094]
[1732441171763,0.05426393,97674.0,97670.0,0.15]
[1732441171986,0.05426393,97674.0,97672.0,0.0026916]
[1732441172218,0.05426393,97674.0,97670.0,0.15]
[1732441172399,0.05426393,97674.0,97673.0,0.00269159]
[1732441172615,0.05426393,97674.0,97670.0,0.15]
[1732441172779,0.05426393,97674.0,97673.0,0.00269159]
[1732441172997,0.05426393,97674.0,97670.0,0.15]
[1732441173192,0.05426393,97674.0,97673.0,0.00269159]
[1732441173400,0.05426393,97674.0,97670.0,0.15]
[1732441173797,0.05426393,97674.0,97671.0,0.00269117]
[1732441174028,0.05426393,97674.0,97670.0,0.15]